bitfinex/quotes_SOLUSD_20230904
["timestamp","ask_amount","ask_price","bid_price","bid_amount"]
[1693848870650,123.77123555,19.423,19.409,55.0]
[1693848871053,123.77123555,19.423,19.409,57.411]
[1693848879661,99.68639999,19.423,19.409,57.411]
[1693848885360,99.68639999,19.423,19.409,2.411]
[1693848885669,123.77123555,19.423,19.409,2.411]
[1693848887069,123.77123555,19.423,19.409,22.411]
[1693848887256,123.77123555,19.423,19.41,55.0]
[1693848887456,123.77123555,19.423,19.41,57.411]
[1693848887658,123.77123555,19.423,19.41,55.0]
[1693848890372,34.07,19.42,19.409,22.411]
[1693848890673,0.49999999,19.417,19.409,2.411]
[1693848891868,8.034,19.418,19.409,22.411]
[1693848892175,8.034,19.418,19.41,55.0]
[1693848892369,0.49999999,19.417,19.41,55.0]
[1693848893170,8.034,19.418,19.41,55.0]
[1693848893481,8.033,19.419,19.41,57.411]
[1693848895276,0.49999999,19.418,19.41,57.411]
[1693848895575,8.53299999,19.418,19.41,57.411]
[1693848895765,8.033,19.418,19.41,57.411]
[1693848900072,0.49999999,19.42,19.41,57.411]
[1693848900272,8.033,19.42,19.41,57.411]
[1693848900481,0.49999999,19.419,19.41,57.411]
[1693848901774,8.53299999,19.419,19.41,57.411]
[1693848901975,8.033,19.419,19.41,57.411]
[1693848902986,8.033,19.42,19.41,57.411]
[1693848903286,0.49999999,19.419,19.41,57.411]
[1693848903467,8.033,19.419,19.41,57.411]
[1693848905180,0.49999999,19.418,19.41,57.411]
[1693848905481,8.033,19.418,19.41,55.0]
[1693848905872,8.033,19.418,19.41,57.411]
[1693848907188,8.033,19.419,19.41,2.411]
[1693848907388,0.49999999,19.418,19.41,2.411]
[1693848908278,8.033,19.418,19.41,2.411]
[1693848908877,8.033,19.42,19.41,2.411]
[1693848909078,0.49999999,19.419,19.41,2.411]
[1693848909278,8.53299999,19.419,19.41,2.411]
[1693848909479,8.033,19.419,19.41,2.411]
[1693848920606,8.032,19.421,19.41,2.411]
[1693848920905,0.49999999,19.42,19.41,2.411]
[1693848921092,0.49999999,19.421,19.41,2.411]
[1693848921288,8.53199999,19.421,19.41,2.411]
[1693848921496,8.032,19.421,19.41,2.411]
[1693848923411,0.49999999,19.42,19.41,2.411]
[1693848923613,8.032,19.421,19.41,2.411]
[1693848924302,0.49999999,19.42,19.41,2.411]
[1693848925001,8.032,19.421,19.41,2.411]
[1693848925202,0.49999999,19.42,19.41,36.481]
[1693848925405,8.031,19.424,19.41,36.481]
[1693848925596,0.49999999,19.423,19.41,36.481]
[1693848926813,0.49999999,19.423,19.41,62.426]
[1693848928111,34.07,19.44,19.411,25.75781734]
[1693848928409,2.5,19.439,19.42,34.07]
[1693848928609,10.525,19.439,19.426,27.179]
[1693848928817,10.525,19.439,19.427,0.49999999]
[1693848929112,42.094,19.44,19.43,2.408]
[1693848929315,2.5,19.439,19.43,2.408]
[1693848929813,2.5,19.441,19.43,36.478]
[1693848930106,2.5,19.441,19.434,2.408]
[1693848930312,2.5,19.442,19.434,2.408]
[1693848930497,10.523,19.442,19.434,57.408]
[1693848931198,2.5,19.442,19.434,57.408]
[1693848931401,2.5,19.443,19.434,74.388]
[1693848931601,2.5,19.446,19.434,74.388]
[1693848931811,10.522,19.446,19.434,74.388]
[1693848932424,10.522,19.446,19.434,57.408]
[1693848934898,10.522,19.446,19.434,61.791]
[1693848937109,10.522,19.446,19.438,1.605]
[1693848941020,10.522,19.446,19.435,6.64896048]
[1693848941213,10.522,19.446,19.436,1.605]
[1693848942916,10.522,19.446,19.436,56.605]
[1693848948423,67.088,19.446,19.434,1.605]
[1693848949207,10.522,19.446,19.434,1.605]
[1693848949918,10.522,19.446,19.434,56.605]
[1693848950318,10.522,19.446,19.435,20.0]
[1693848950519,2.5,19.446,19.438,1.605]
[1693848950826,96.0449,19.448,19.438,76.605]
[1693848950827,2.5,19.447,19.438,76.605]
[1693848951423,8.021,19.449,19.438,76.605]
[1693848951624,2.5,19.448,19.438,76.605]
[1693848952721,2.5,19.449,19.44,34.07]
[1693848952934,2.5,19.451,19.442,18.103]
[1693848953135,2.5,19.452,19.443,55.0]
[1693848953323,2.5,19.452,19.445,6.787]
[1693848953522,2.5,19.453,19.446,55.0]
[1693848953724,10.519,19.453,19.448,1.604]
[1693848953926,10.519,19.453,19.447,1.604]
[1693848956423,2.5,19.453,19.447,1.604]
[1693848957232,10.519,19.453,19.447,1.604]
[1693848959144,10.519,19.453,19.446,56.604]
[1693848959335,10.519,19.453,19.444,1.604]
[1693848964147,10.519,19.453,19.444,56.604]
[1693848964748,10.519,19.453,19.444,55.0]
[1693848964952,10.519,19.453,19.439,5.185]
[1693848965138,10.519,19.453,19.441,1.604]
[1693848970444,36.427,19.453,19.441,1.604]
[1693848974555,36.427,19.453,19.442,6.64656656]
[1693848974757,36.427,19.453,19.444,1.604]
[1693848974969,36.427,19.453,19.445,6.64554112]
[1693848975643,36.427,19.453,19.445,8.24954112]
[1693848975844,36.427,19.453,19.446,6.64519937]
[1693848976645,10.519,19.453,19.446,8.24919937]
[1693848976847,10.519,19.453,19.447,6.64485766]
[1693848977049,10.519,19.453,19.447,8.24885766]
[1693848977251,10.519,19.453,19.448,6.64451599]
[1693848978961,10.519,19.453,19.448,8.24851599]
[1693848979154,10.519,19.453,19.449,6.64417435]
[1693848983547,10.519,19.453,19.446,1.604]
[1693848989152,36.427,19.453,19.44,34.07]
[1693848989463,8.021,19.448,19.44,1.604]
[1693848989666,2.5,19.447,19.44,1.604]
[1693848989863,8.022,19.446,19.44,1.604]
[1693848990056,2.5,19.445,19.44,1.604]
[1693848990659,8.022,19.445,19.439,1.605]
[1693848990871,8.022,19.445,19.439,20.0]
[1693848991072,8.022,19.445,19.438,1.605]
[1693848991364,2.5,19.444,19.438,1.605]
[1693848991754,8.022,19.446,19.438,1.605]
[1693848992063,2.5,19.444,19.438,1.605]
[1693848993967,2.5,19.446,19.438,1.605]
[1693848994350,10.522,19.446,19.438,1.605]
[1693848994765,8.022,19.446,19.438,1.605]
[1693848995256,2.5,19.445,19.438,1.605]
[1693848995458,2.5,19.446,19.438,1.605]
[1693848996572,10.522,19.446,19.438,1.605]
[1693848996761,8.022,19.446,19.426,391.5]
[1693848997071,2.5,19.445,19.434,1.605]
[1693848997370,8.023,19.442,19.434,1.605]
[1693848997571,2.5,19.441,19.434,1.605]
[1693848998362,8.024,19.441,19.422,20.491]
[1693848998671,8.025,19.439,19.428,1.605]
[1693848999871,8.025,19.439,19.429,0.49999999]
[1693849000057,8.025,19.439,19.432,1.605]
[1693849001190,42.094,19.44,19.432,1.605]
[1693849001473,8.024,19.44,19.432,1.605]
[1693849003771,8.024,19.44,19.432,0.605]
[1693849003968,42.094,19.44,19.431,55.0]
[1693849004368,1.99846584,19.439,19.431,55.0]
[1693849004584,8.026,19.437,19.431,55.0]
[1693849005183,8.025,19.439,19.431,56.605]
[1693849005478,8.025,19.439,19.431,1.605]
[1693849009365,8.025,19.439,19.43,56.605]
[1693849009565,8.025,19.439,19.43,1.605]
[1693849015074,8.025,19.439,19.429,1.605]
[1693849015273,21.0,19.438,19.424,1.606]
[1693849015470,33.961,19.434,19.421,11.327]
[1693849015677,33.961,19.434,19.424,1.606]
[1693849016978,33.961,19.434,19.424,56.606]
[1693849017881,8.027,19.434,19.425,0.49999999]
[1693849018065,8.027,19.434,19.427,1.605]
[1693849020866,8.027,19.434,19.424,1.606]
[1693849021069,8.027,19.434,19.418,5.19]
[1693849021376,33.969,19.43,19.416,31.91163303]
[1693849021570,33.969,19.43,19.417,0.49999999]
[1693849021771,33.969,19.43,19.42,1.606]
[1693849022384,8.029,19.43,19.42,1.606]
[1693849023380,8.029,19.43,19.42,56.606]
[1693849025487,8.029,19.43,19.421,0.49999999]
[1693849025684,8.029,19.43,19.423,1.606]
[1693849026877,25.93,19.437,19.423,1.606]
[1693849027084,1.0,19.436,19.423,1.606]
[1693849027281,8.026,19.436,19.423,1.606]
[1693849027491,1.0,19.435,19.423,1.606]
[1693849027792,8.027,19.434,19.423,1.606]
[1693849031292,33.96,19.434,19.423,1.606]
[1693849032484,33.96,19.434,19.423,56.606]
[1693849033390,8.027,19.434,19.423,56.606]
[1693849034396,8.027,19.434,19.424,0.49999999]
[1693849034592,8.027,19.434,19.427,1.606]
[1693849035195,112.5214,19.438,19.427,1.606]
[1693849035393,1.0,19.437,19.427,1.606]
[1693849036595,8.026,19.436,19.427,1.606]
[1693849037699,1.0,19.435,19.427,1.606]
[1693849037998,8.027,19.433,19.427,1.606]
[1693849039695,8.027,19.434,19.427,1.606]
[1693849040008,8.026,19.435,19.427,1.606]
[1693849047296,8.026,19.436,19.427,21.606]
[1693849047492,8.026,19.436,19.43,1.605]
[1693849047895,8.026,19.436,19.43,56.605]
[1693849050593,8.026,19.436,19.429,20.0]
[1693849050801,8.026,19.436,19.426,0.49999999]
[1693849050989,8.026,19.436,19.429,1.605]
[1693849052206,8.026,19.436,19.429,21.605]
[1693849052415,8.026,19.436,19.429,1.605]
[1693849053005,8.026,19.436,19.429,21.605]
[1693849060311,8.026,19.437,19.429,21.605]
[1693849060502,98.2275,19.438,19.43,55.0]
[1693849060818,8.024,19.441,19.432,1.605]
[1693849061109,2.57791023,19.44,19.432,67.926]
[1693849061297,3.5,19.444,19.432,67.926]
[1693849061499,8.024,19.442,19.432,67.926]
[1693849061790,3.5,19.442,19.432,67.926]
[1693849062395,3.5,19.443,19.432,67.926]
[1693849062815,11.523,19.443,19.432,67.926]
[1693849063307,37.444,19.443,19.432,1.605]
[1693849063710,11.523,19.443,19.432,1.605]
[1693849064500,11.523,19.443,19.432,56.605]
[1693849065009,11.523,19.443,19.433,55.0]
[1693849065197,11.523,19.443,19.433,1.605]
[1693849065599,110.8042,19.443,19.429,20.0]
[1693849065899,11.523,19.443,19.431,1.605]
[1693849066099,99.2812,19.442,19.431,1.605]
[1693849066416,3.5,19.438,19.431,1.605]
[1693849066913,11.525,19.438,19.431,1.605]
[1693849067307,8.025,19.438,19.431,1.605]
[1693849067701,3.5,19.437,19.431,1.605]
[1693849069613,8.025,19.438,19.431,1.605]
[1693849071115,3.5,19.437,19.431,1.605]
[1693849071317,8.025,19.438,19.431,1.605]
[1693849071502,3.5,19.437,19.431,1.605]
[1693849071700,8.026,19.437,19.431,1.605]
[1693849071904,25.926,19.44,19.431,1.605]
[1693849071905,8.025,19.438,19.431,1.605]
[1693849072513,8.025,19.439,19.431,1.605]
[1693849072700,3.5,19.438,19.431,1.605]
[1693849073304,8.025,19.438,19.431,1.605]
[1693849074720,3.5,19.437,19.429,21.605]
[1693849075021,11.526,19.437,19.43,55.0]
[1693849075313,11.526,19.437,19.431,1.605]
[1693849077316,3.5,19.437,19.431,1.605]
[1693849077505,3.5,19.438,19.431,56.605]
[1693849077810,3.5,19.439,19.431,56.605]
[1693849078220,11.525,19.439,19.431,56.605]
[1693849078518,3.5,19.438,19.431,56.605]
[1693849080822,11.525,19.438,19.431,56.605]
[1693849081024,8.025,19.438,19.431,56.605]
[1693849085320,3.5,19.443,19.431,56.605]
[1693849085521,3.5,19.446,19.431,6.792]
[1693849085725,11.522,19.446,19.432,55.0]
[1693849086022,11.522,19.446,19.436,6.791]
[1693849086219,11.522,19.446,19.439,1.604]
[1693849091429,3.5,19.446,19.439,1.604]
[1693849091725,34.07,19.45,19.439,56.604]
[1693849091726,3.5,19.45,19.439,56.604]
[1693849091929,3.5,19.45,19.44,34.07]
[1693849092112,3.5,19.452,19.443,18.103]
[1693849092621,3.5,19.452,19.444,55.0]
[1693849092929,3.5,19.452,19.446,1.604]
[1693849093122,3.5,19.452,19.446,56.604]
[1693849094026,24.924,19.456,19.446,56.604]
[1693849095720,8.019,19.453,19.446,56.604]
[1693849095921,8.019,19.453,19.446,55.0]
[1693849097034,8.019,19.453,19.446,56.604]
[1693849097330,8.019,19.453,19.446,55.0]
[1693849099922,8.019,19.453,19.446,56.604]
[1693849101735,8.019,19.453,19.446,1.604]
[1693849107427,8.019,19.453,19.44,34.07]
[1693849108527,8.019,19.453,19.443,6.788]
[1693849114246,8.019,19.453,19.443,1.604]
[1693849119445,64.565,19.453,19.443,1.604]
[1693849121642,59.565,19.453,19.443,1.604]
[1693849121848,64.565,19.453,19.443,1.604]
[1693849123242,8.019,19.453,19.443,1.604]
[1693849125141,8.019,19.453,19.437,34.07]
[1693849125347,34.07,19.45,19.441,1.604]
[1693849125547,8.021,19.448,19.441,1.604]
[1693849126551,8.021,19.449,19.441,1.604]
[1693849139946,8.02,19.45,19.441,1.604]
[1693849140152,8.02,19.451,19.441,1.604]
[1693849168478,34.07,19.45,19.441,1.604]
[1693849168677,8.021,19.449,19.441,1.604]
[1693849183685,8.021,19.449,19.436,2.76691396]
[1693849183886,8.021,19.449,19.417,391.5]
[1693849183887,20.0,19.448,19.435,3.37370654]
[1693849184082,90.514,19.445,19.433,1.605]
[1693849184780,91.1709,19.444,19.433,1.605]
[1693849184972,8.024,19.441,19.433,1.605]
[1693849185377,8.024,19.441,19.431,3.99999999]
[1693849185596,8.024,19.441,19.431,5.60499999]
[1693849185887,8.025,19.438,19.431,5.60499999]
[1693849186676,8.025,19.438,19.431,1.605]
[1693849187076,8.025,19.438,19.431,5.60499999]
[1693849187985,8.025,19.438,19.431,1.605]
[1693849188494,8.025,19.438,19.431,3.33764316]
[1693849190102,8.025,19.438,19.431,1.73264316]
[1693849190275,8.025,19.438,19.428,1.605]
[1693849191191,8.025,19.438,19.428,5.60499999]
[1693849191379,8.025,19.438,19.429,20.0]
[1693849192090,8.025,19.438,19.425,3.99999999]
[1693849192393,55.0,19.437,19.418,5.60599999]
[1693849192601,8.03,19.427,19.421,3.99999999]
[1693849192802,8.03,19.427,19.421,5.60599999]
[1693849193097,8.029,19.429,19.421,1.606]
[1693849193887,34.07,19.43,19.421,56.606]
[1693849194090,34.07,19.43,19.422,3.99999999]
[1693849194291,42.099,19.43,19.423,1.606]
[1693849194490,42.099,19.43,19.423,5.60599999]
[1693849194798,42.099,19.43,19.422,3.99999999]
[1693849195090,42.099,19.43,19.422,60.60599999]
[1693849195303,42.099,19.43,19.422,56.606]
[1693849196592,42.099,19.43,19.423,1.9210225]
[1693849196899,42.099,19.43,19.423,3.5270225]
[1693849197897,42.099,19.43,19.423,1.606]
[1693849198285,42.099,19.43,19.422,55.0]
[1693849198485,42.099,19.43,19.423,1.92967972]
[1693849201803,20.0,19.429,19.418,1.92967972]
[1693849201996,8.03,19.426,19.418,1.606]
[1693849202483,8.03,19.426,19.418,56.606]
[1693849202688,8.026,19.435,19.418,77.102]
[1693849202899,41.94650205,19.439,19.42,34.07]
[1693849203086,8.025,19.437,19.424,18.12]
[1693849203288,8.025,19.437,19.425,3.99999999]
[1693849203483,41.94650205,19.439,19.428,1.605]
[1693849203690,20.0,19.438,19.428,56.605]
[1693849203998,40.89392378,19.44,19.429,3.99999999]
[1693849204199,98.1612,19.441,19.432,16.508]
[1693849204501,98.1612,19.441,19.435,1.605]
[1693849204692,8.023,19.444,19.435,1.605]
[1693849204893,8.023,19.444,19.435,56.605]
[1693849206604,25.918,19.446,19.435,56.605]
[1693849206605,25.915,19.448,19.435,56.605]
[1693849206805,41.39094649,19.449,19.435,67.924]
[1693849206990,124.0722,19.451,19.435,67.924]
[1693849206991,8.021,19.448,19.435,67.924]
[1693849207195,98.1612,19.451,19.436,1.69713725]
[1693849207394,34.07,19.45,19.44,1.604]
[1693849207592,8.021,19.447,19.44,1.604]
[1693849207794,8.021,19.447,19.438,22.14180592]
[1693849208109,8.021,19.447,19.438,2.14180592]
[1693849208309,8.021,19.447,19.431,3.75553898]
[1693849208488,32.10631171,19.447,19.431,1.605]
[1693849208692,32.10631171,19.447,19.432,2.82211417]
[1693849209299,32.10631171,19.447,19.432,4.42711417]
[1693849209613,32.10631171,19.447,19.432,1.605]
[1693849209808,32.10631171,19.447,19.432,56.605]
[1693849210008,32.10631171,19.447,19.433,3.03799224]
[1693849210309,32.10631171,19.447,19.434,1.605]
[1693849214513,32.10631171,19.447,19.433,1.605]
[1693849215717,32.10631171,19.447,19.432,55.0]
[1693849216097,24.08531171,19.446,19.432,56.605]
[1693849216296,33.946,19.442,19.432,1.605]
[1693849217099,33.946,19.442,19.431,1.605]
[1693849217720,33.946,19.442,19.431,5.10759862]
[1693849217904,33.946,19.442,19.432,55.0]
[1693849218105,33.946,19.442,19.432,56.605]
[1693849222201,8.025,19.438,19.432,56.605]
[1693849223510,8.025,19.438,19.432,55.0]
[1693849225322,8.025,19.438,19.432,56.605]
[1693849227644,42.095,19.44,19.432,56.605]
[1693849229329,8.025,19.44,19.432,56.605]
[1693849253541,8.025,19.44,19.433,1.8497515]
[1693849253744,8.025,19.44,19.433,3.4547515]
[1693849254039,8.025,19.44,19.433,1.605]
[1693849258032,8.025,19.44,19.432,56.605]
[1693849258737,8.025,19.44,19.432,1.605]
[1693849259939,8.025,19.44,19.432,3.53718276]
[1693849260537,8.025,19.44,19.432,1.605]
[1693849260737,8.025,19.44,19.432,3.53718276]
[1693849261840,8.025,19.44,19.432,1.605]
[1693849265843,8.025,19.44,19.432,3.30461133]
[1693849268353,58.15531171,19.45,19.432,3.30461133]
[1693849268541,56.563,19.448,19.432,3.30461133]
[1693849268743,8.023,19.445,19.432,3.30461133]
[1693849272143,34.07,19.45,19.432,3.30461133]
[1693849272346,8.021,19.449,19.432,81.71537952]
[1693849272546,8.021,19.449,19.433,55.0]
[1693849272843,8.021,19.449,19.438,3.99999999]
[1693849273055,8.021,19.449,19.441,6.788]
[1693849273246,8.021,19.449,19.442,3.99999999]
[1693849273445,8.021,19.449,19.443,1.604]
[1693849275543,42.09,19.45,19.443,1.604]
[1693849275747,42.09,19.45,19.443,56.604]
[1693849276145,42.09,19.45,19.443,1.604]
[1693849276346,42.09,19.45,19.442,56.604]
[1693849276547,42.09,19.45,19.442,55.0]
[1693849276947,42.09,19.45,19.442,56.604]
[1693849278658,42.09,19.45,19.442,1.604]
[1693849284556,8.02,19.45,19.442,1.604]
[1693849292166,8.02,19.45,19.442,5.60399999]
[1693849292477,8.02,19.45,19.444,1.604]
[1693849292868,93.7676,19.455,19.444,1.604]
[1693849293166,24.08531171,19.462,19.444,1.604]
[1693849293359,387.39621824,19.466,19.445,3.99999999]
[1693849293555,8.016,19.461,19.451,6.786]
[1693849293868,8.016,19.461,19.454,1.603]
[1693849295272,8.016,19.461,19.452,56.603]
[1693849296360,8.016,19.461,19.453,3.99999999]
[1693849296661,8.016,19.461,19.454,1.603]
[1693849303683,8.016,19.461,19.453,56.603]
[1693849303974,8.016,19.461,19.453,55.0]
[1693849305976,8.016,19.461,19.453,56.603]
[1693849307070,8.016,19.461,19.453,1.603]
[1693849323888,34.07,19.46,19.452,55.0]
[1693849324092,33.919,19.458,19.452,55.0]
[1693849324278,33.919,19.458,19.447,1.53443154]
[1693849324485,136.19,19.458,19.441,23.99999999]
[1693849324681,136.19,19.458,19.445,1.604]
[1693849324881,33.919,19.458,19.445,1.604]
[1693849325086,33.919,19.458,19.446,3.99999999]
[1693849325287,33.919,19.458,19.447,1.604]
[1693849325490,33.919,19.458,19.448,3.99999999]
[1693849325681,33.919,19.458,19.448,25.60399999]
[1693849326085,33.919,19.458,19.448,21.604]
[1693849326397,33.919,19.458,19.449,58.99999999]
[1693849326586,33.919,19.458,19.45,1.604]
[1693849328284,33.919,19.458,19.449,55.0]
[1693849328596,33.919,19.458,19.448,56.604]
[1693849328781,33.919,19.458,19.449,23.99999999]
[1693849329798,33.919,19.458,19.449,20.0]
[1693849330297,33.919,19.458,19.45,1.56597478]
[1693849330981,33.919,19.458,19.443,3.99999999]
[1693849331186,33.919,19.458,19.442,1.604]
[1693849331387,33.919,19.458,19.443,3.99999999]
[1693849331586,33.919,19.458,19.444,1.604]
[1693849331998,33.927,19.454,19.444,1.604]
[1693849333585,33.927,19.454,19.445,3.99999999]
[1693849333786,33.927,19.454,19.445,58.99999999]
[1693849333987,33.927,19.454,19.445,5.60399999]
[1693849334186,33.927,19.454,19.445,1.604]
[1693849334494,33.927,19.454,19.445,56.604]
[1693849335599,33.927,19.454,19.445,5.60399999]
[1693849337396,33.927,19.454,19.445,1.604]
[1693849337597,33.927,19.454,19.445,3.19371631]
[1693849338098,33.927,19.454,19.445,1.604]
[1693849338301,8.019,19.454,19.445,3.2027609]
[1693849341006,33.926,19.454,19.445,1.5987609]
[1693849342402,33.926,19.454,19.445,3.2027609]
[1693849343109,33.926,19.454,19.445,1.604]
[1693849343307,8.019,19.454,19.445,1.604]
[1693849347004,8.019,19.454,19.445,3.1658758]
[1693849347206,8.019,19.454,19.444,55.0]
[1693849347801,8.019,19.454,19.444,56.604]
[1693849348208,8.019,19.454,19.444,3.56408656]
[1693849360212,34.07,19.45,19.444,1.96008656]
[1693849360402,90.498,19.448,19.433,1.605]
[1693849360604,90.498,19.448,19.432,1.605]
[1693849360805,92.6204,19.447,19.433,3.99999999]
[1693849361009,90.521,19.443,19.433,1.605]
[1693849361211,33.945,19.443,19.433,1.605]
[1693849362621,33.945,19.443,19.433,5.60499999]
[1693849362916,33.945,19.443,19.435,3.99999999]
[1693849364816,33.945,19.443,19.435,5.60499999]
[1693849365012,33.945,19.443,19.436,55.0]
[1693849365720,8.023,19.443,19.437,3.99999999]
[1693849366017,8.023,19.443,19.436,56.605]
[1693849370246,8.023,19.443,19.43,49.65980956]
[1693849370247,8.023,19.443,19.43,34.07]
[1693849370431,34.07,19.44,19.431,3.99999999]
[1693849370726,8.025,19.438,19.431,3.99999999]
[1693849371521,8.025,19.438,19.431,5.60499999]
[1693849371717,8.025,19.438,19.431,1.605]
[1693849371922,8.025,19.438,19.432,3.99999999]
[1693849372106,8.025,19.438,19.432,58.99999999]
[1693849372304,8.025,19.438,19.429,3.99999999]
[1693849372508,8.025,19.438,19.427,1.606]
[1693849372703,8.025,19.438,19.428,3.99999999]
[1693849372907,8.025,19.438,19.428,23.99999999]
[1693849373121,8.025,19.438,19.428,25.60499999]
[1693849374515,8.025,19.438,19.431,1.605]
[1693849374715,8.025,19.438,19.432,3.99999999]
[1693849374923,8.025,19.438,19.432,55.0]
[1693849375123,8.025,19.438,19.433,3.99999999]
[1693849375517,8.025,19.439,19.433,3.99999999]
[1693849375828,8.025,19.439,19.433,5.60499999]
[1693849376015,8.025,19.439,19.435,3.99999999]
[1693849376216,8.025,19.439,19.434,55.0]
[1693849377328,33.952,19.439,19.434,55.0]
[1693849378030,8.025,19.439,19.434,55.0]
[1693849380331,97.09163374,19.446,19.434,56.605]
[1693849380516,8.023,19.443,19.435,3.99999999]
[1693849380825,8.023,19.443,19.437,1.605]
[1693849381016,8.023,19.443,19.436,56.605]
[1693849381210,8.023,19.443,19.435,3.70668286]
[1693849386832,8.023,19.443,19.435,1.605]
[1693849387133,8.023,19.443,19.435,3.38116409]
[1693849399740,8.023,19.443,19.435,1.605]
[1693849400140,8.023,19.443,19.434,56.605]
[1693849400442,8.023,19.443,19.435,2.05672743]
[1693849402844,8.023,19.443,19.435,3.66172743]
[1693849408949,8.023,19.443,19.435,1.605]
[1693849409649,8.023,19.443,19.435,3.17116425]
[1693849423056,8.023,19.444,19.435,3.17116425]
[1693849430865,92.6204,19.447,19.435,3.17116425]
[1693849431061,92.6204,19.447,19.435,14.49016425]
[1693849431358,92.6204,19.447,19.439,1.604]
[1693849431359,8.022,19.445,19.439,1.604]
[1693849431562,8.022,19.445,19.439,4.87209351]
[1693849431857,8.022,19.445,19.438,55.0]
[1693849431858,33.941,19.445,19.438,3.26809351]
[1693849432060,33.941,19.445,19.44,55.0]
[1693849432259,33.941,19.445,19.437,2.41680254]
[1693849432561,8.022,19.445,19.438,1.605]
[1693849434162,8.022,19.445,19.438,56.605]
[1693849434369,8.022,19.445,19.439,2.41680254]
[1693849434548,8.022,19.445,19.44,1.604]
[1693849434748,8.022,19.445,19.438,56.605]
[1693849440363,8.022,19.445,19.438,55.0]
[1693849444651,8.022,19.445,19.438,56.605]
[1693849453358,8.022,19.445,19.438,55.0]
[1693849456573,8.022,19.445,19.434,15.24845678]
[1693849456763,110.361,19.445,19.429,15.15123456]
[1693849456965,110.361,19.445,19.431,1.605]
[1693849457277,110.361,19.445,19.431,3.99761773]
[1693849457981,201.4937,19.445,19.431,3.99761773]
[1693849458277,34.07,19.44,19.431,2.39261773]
[1693849458461,34.07,19.44,19.415,26.97721908]
[1693849458462,192.926,19.438,19.429,2.39261773]
[1693849458774,24.08531171,19.437,19.413,33.99999999]
[1693849458976,124.651,19.43,19.419,1.606]
[1693849459175,124.651,19.43,19.42,3.99999999]
[1693849459562,91.1327,19.429,19.417,3.99999999]